fUSD/lending_fUSD_20250821
["ID","MTS","AMOUNT","RATE_DAILY","PERIOD"]
[380618483,1755820326355,-400.0,0.00017534,2]
[380618484,1755820326365,-400.0,0.00017534,2]
[380618485,1755820326373,-400.0,0.00017534,2]
[380618486,1755820326382,-1041.56,0.00017534,2]
[380618487,1755820326391,-542.43,0.00017534,2]
[380618488,1755820326401,-400.0,0.00017534,2]
[380618489,1755820326410,-993.63,0.00017534,2]
[380618490,1755820326419,-400.0,0.00017534,2]
[380618491,1755820326428,-746.06,0.00017534,2]
[380618492,1755820326437,-620.09,0.00017534,2]
[380618493,1755820326447,-638.82,0.00017534,2]
[380618494,1755820326456,-400.0,0.00017534,2]
[380618495,1755820326465,-1415.05,0.00017534,2]
[380618496,1755820326474,-400.0,0.00017534,2]
[380618497,1755820326483,-802.09,0.00017534,2]
[380618498,1755820326492,-400.0,0.00017534,2]
[380618499,1755820326501,-722.57,0.00017534,2]
[380618500,1755820326510,-604.09,0.00017534,2]
[380618501,1755820326519,-400.0,0.00017534,2]
[380618502,1755820326528,-400.0,0.00017534,2]
[380618503,1755820326537,-1307.81,0.00017534,2]
[380618504,1755820326546,-400.0,0.00017534,2]
[380618505,1755820326556,-400.0,0.00017534,2]
[380618506,1755820326565,-446.95,0.00017534,2]
[380618507,1755820326574,-400.0,0.00017534,2]
[380618508,1755820326584,-400.0,0.00017534,2]
[380618509,1755820326593,-506.14,0.00017534,2]
[380618510,1755820326603,-400.0,0.00017534,2]
[380618511,1755820326612,-400.0,0.00017534,2]
[380618512,1755820326622,-521.01,0.00017534,2]
[380618513,1755820326632,-500.08,0.00017534,2]
[380618514,1755820326641,-400.0,0.00017534,2]
[380618515,1755820326650,-1220.14,0.00017534,2]
[380618516,1755820326660,-979.44,0.00017534,2]
[380618517,1755820326670,-436.21,0.00017534,2]
[380618518,1755820326682,-400.0,0.00017534,2]
[380618519,1755820326692,-400.0,0.00017534,2]
[380618520,1755820326702,-457.83,0.00017534,2]
[380618521,1755820326713,-400.0,0.00017534,2]
[380618522,1755820326724,-400.0,0.00017534,2]
[380618523,1755820326735,-495.86,0.00017534,2]
[380618524,1755820326744,-810.29,0.00017534,2]
[380618525,1755820326754,-486.13,0.00017534,2]
[380618526,1755820326763,-1453.73,0.00017534,2]
[380618527,1755820326773,-461.7,0.00017534,2]
[380618528,1755820326783,-400.0,0.00017534,2]
[380618529,1755820326793,-962.68,0.00017534,2]
[380618530,1755820326802,-487.33,0.00017534,2]
[380618531,1755820326812,-400.0,0.00017534,2]
[380618532,1755820326821,-766.64,0.00017534,2]
[380618533,1755820326831,-400.0,0.00017534,2]
[380618534,1755820326840,-418.74,0.00017534,2]
[380618535,1755820326850,-400.0,0.00017534,2]
[380618536,1755820326859,-400.0,0.00017534,2]
[380618537,1755820326868,-400.0,0.00017534,2]
[380618538,1755820326878,-1328.66,0.00017534,2]
[380618539,1755820326888,-413.48,0.00017534,2]
[380618540,1755820326898,-1434.45,0.00017534,2]
[380618541,1755820326907,-851.75,0.00017534,2]
[380618542,1755820326919,-896.8,0.00017534,2]
[380618543,1755820326928,-580.91,0.00017534,2]
[380618544,1755820326937,-400.0,0.00017534,2]
[380618545,1755820326946,-400.0,0.00017534,2]
[380618546,1755820326955,-400.0,0.00017534,2]
[380618547,1755820326964,-467.86,0.00017534,2]
[380618548,1755820326974,-980.46,0.00017534,2]
[380618549,1755820326982,-400.0,0.00017534,2]
[380618550,1755820326991,-534.52,0.00017534,2]
[380618551,1755820327000,-1048.64,0.00017534,2]
[380618552,1755820327010,-375.17527026,0.00017534,2]
[380618553,1755820327020,-1216.62,0.00017534,2]
[380618554,1755820327030,-4941.57,0.00017534,2]
[380618555,1755820327039,-538.96,0.00017534,2]
[380618556,1755820327050,-774.53,0.00017534,2]
[380618557,1755820327060,-400.0,0.00017534,2]
[380618558,1755820327069,-806.59,0.00017534,2]
[380618559,1755820327078,-400.0,0.00017534,2]
[380618560,1755820327088,-400.0,0.00017534,2]
[380618561,1755820327097,-762.92,0.00017534,2]
[380618562,1755820327106,-620.29,0.00017534,2]
[380618563,1755820327116,-893.21,0.00017534,2]
[380618564,1755820327125,-1244.67,0.00017534,2]
[380618565,1755820327135,-1018.02,0.00017534,2]
[380618566,1755820327144,-400.0,0.00017534,2]
[380618567,1755820327154,-711.86,0.00017534,2]
[380618568,1755820327163,-511.31,0.00017534,2]
[380618569,1755820327173,-400.0,0.00017534,2]
[380618570,1755820327183,-400.0,0.00017534,2]
[380618571,1755820327192,-400.0,0.00017534,2]
[380618572,1755820327201,-863.82,0.00017534,2]
[380618573,1755820327211,-400.0,0.00017534,2]
[380618574,1755820327220,-414.74,0.00017534,2]
[380618575,1755820327229,-511.24,0.00017534,2]
[380618576,1755820327239,-656.22,0.00017534,2]
[380618577,1755820327248,-806.5,0.00017534,2]
[380618578,1755820327257,-400.0,0.00017534,2]
[380618579,1755820327266,-799.81,0.00017534,2]
[380618580,1755820327276,-400.0,0.00017534,2]
[380618581,1755820327285,-630.83,0.00017534,2]
[380618582,1755820327294,-400.0,0.00017534,2]
[380618583,1755820327303,-400.0,0.00017534,2]
[380618584,1755820327312,-666.3,0.00017534,2]
[380618585,1755820327321,-1079.15,0.00017534,2]
[380618586,1755820327331,-748.4,0.00017534,2]
[380618587,1755820327339,-400.0,0.00017534,2]
[380618588,1755820327348,-743.0,0.00017534,2]
[380618589,1755820327357,-1672.41,0.00017534,2]
[380618590,1755820327366,-747.49,0.00017534,2]
[380618591,1755820327375,-470.34,0.00017534,2]
[380618592,1755820327384,-1226.26,0.00017534,2]
[380618593,1755820327394,-798.04,0.00017534,2]
[380618594,1755820327402,-1278.5,0.00017534,2]
[380618595,1755820327411,-1057.6,0.00017534,2]
[380618596,1755820327421,-400.0,0.00017534,2]
[380618597,1755820327430,-400.0,0.00017534,2]
[380618598,1755820327440,-717.93,0.00017534,2]
[380618599,1755820327449,-483.37,0.00017534,2]
[380618600,1755820327458,-658.1,0.00017534,2]
[380618601,1755820327468,-400.0,0.00017534,2]
[380618602,1755820327477,-763.18,0.00017534,2]
[380618603,1755820327486,-442.94,0.00017534,2]
[380618604,1755820327495,-494.31,0.00017534,2]
[380618605,1755820327506,-1361.47,0.00017534,2]
[380618606,1755820327515,-817.45,0.00017534,2]
[380618607,1755820327525,-705.28,0.00017534,2]
[380618608,1755820327535,-939.45,0.00017534,2]
[380618609,1755820327545,-612.72,0.00017534,2]
[380618610,1755820327556,-400.0,0.00017534,2]
[380618611,1755820327565,-803.9,0.00017534,2]
[380618612,1755820327575,-500.53,0.00017534,2]
[380618613,1755820327585,-588.45,0.00017534,2]
[380618614,1755820327594,-400.0,0.00017534,2]
[380618615,1755820327603,-400.0,0.00017534,2]
[380618616,1755820327613,-971.62,0.00017534,2]
[380618617,1755820327622,-861.44,0.00017534,2]
[380618618,1755820327631,-400.0,0.00017534,2]
[380618619,1755820327640,-461.83,0.00017534,2]
[380618620,1755820327650,-572.76,0.00017534,2]
[380618621,1755820327659,-400.0,0.00017534,2]
[380618622,1755820327668,-400.0,0.00017534,2]
[380618623,1755820327680,-957.97,0.00017534,2]
[380618624,1755820327691,-400.0,0.00017534,2]
[380618625,1755820327700,-597.66,0.00017534,2]
[380618626,1755820327710,-828.21,0.00017534,2]
[380618627,1755820327721,-400.0,0.00017534,2]
[380618628,1755820327731,-481.55,0.00017534,2]
[380618629,1755820327740,-1191.58,0.00017534,2]
[380618630,1755820327749,-400.0,0.00017534,2]
[380618631,1755820327760,-400.0,0.00017534,2]
[380618632,1755820327769,-702.28,0.00017534,2]
[380618633,1755820327779,-1072.41,0.00017534,2]
[380618634,1755820327788,-400.0,0.00017534,2]
[380618635,1755820327799,-400.0,0.00017534,2]
[380618636,1755820327808,-400.0,0.00017534,2]
[380618637,1755820327818,-502.76,0.00017534,2]
[380618638,1755820327827,-1183.3,0.00017534,2]
[380618639,1755820327837,-1074.04,0.00017534,2]
[380618640,1755820327847,-400.0,0.00017534,2]
[380618641,1755820327856,-580.62,0.00017534,2]
[380618642,1755820327865,-699.33,0.00017534,2]
[380618643,1755820327875,-714.27,0.00017534,2]
[380618644,1755820327884,-400.0,0.00017534,2]
[380618645,1755820327894,-400.0,0.00017534,2]
[380618646,1755820327903,-400.0,0.00017534,2]
[380618647,1755820327912,-1135.66,0.00017534,2]
[380618648,1755820327922,-694.32,0.00017534,2]
[380618649,1755820327932,-469.43,0.00017534,2]
[380618650,1755820327942,-400.0,0.00017534,2]
[380618651,1755820327952,-793.54,0.00017534,2]
[380618652,1755820327961,-400.0,0.00017534,2]
[380618653,1755820327971,-1079.15,0.00017534,2]
[380618654,1755820327980,-400.0,0.00017534,2]
[380618655,1755820327990,-400.0,0.00017534,2]
[380618656,1755820327999,-923.74,0.00017534,2]
[380618657,1755820328009,-1531.08,0.00017534,2]
[380618658,1755820328019,-400.0,0.00017534,2]
[380618659,1755820328028,-734.72,0.00017534,2]
[380618660,1755820328039,-281.4817551,0.00017534,2]
[380618661,1755820328050,-400.0,0.00017534,2]
[380618662,1755820328060,-442.34,0.00017534,2]
[380618663,1755820328070,-400.0,0.00017534,2]
[380618664,1755820328080,-492.69,0.00017534,2]
[380618665,1755820328090,-340.87351149,0.00017534,2]
[380618666,1755820328100,-426.98,0.00017534,2]
[380618667,1755820328110,-807.74,0.00017534,2]
[380618668,1755820328120,-400.0,0.00017534,2]
[380618669,1755820328130,-1075.54,0.00017534,2]
[380618670,1755820328140,-400.0,0.00017534,2]
[380618671,1755820328151,-400.0,0.00017534,2]
[380618672,1755820328161,-1038.92,0.00017534,2]
[380618673,1755820328170,-400.0,0.00017534,2]
[380618674,1755820328180,-637.78,0.00017534,2]
[380618675,1755820328190,-786.76,0.00017534,2]
[380618676,1755820328199,-470.58,0.00017534,2]
[380618677,1755820328209,-674.84,0.00017534,2]
[380618678,1755820328222,-728.27,0.00017534,2]
[380618679,1755820328235,-872.43,0.00017534,2]
[380618680,1755820328245,-440.28,0.00017534,2]
[380618681,1755820328255,-969.54,0.00017534,2]
[380618682,1755820328266,-591.65,0.00017534,2]
[380618683,1755820328277,-1178.9,0.00017534,2]
[380618684,1755820328288,-733.24,0.00017534,2]
[380618685,1755820328298,-955.53,0.00017534,2]
[380618686,1755820328308,-710.81,0.00017534,2]
[380618687,1755820328317,-753.13,0.00017534,2]
[380618688,1755820328327,-400.0,0.00017534,2]
[380618689,1755820328337,-400.0,0.00017534,2]
[380618690,1755820328346,-400.0,0.00017534,2]
[380618691,1755820328356,-733.15,0.00017534,2]
[380618692,1755820328366,-836.69,0.00017534,2]
[380618693,1755820328375,-400.0,0.00017534,2]
[380618694,1755820328385,-400.0,0.00017534,2]
[380618695,1755820328395,-531.59,0.00017534,2]
[380618696,1755820328405,-1003.4,0.00017534,2]
[380618697,1755820328414,-406.32,0.00017534,2]
[380618698,1755820328424,-9592.92,0.00017534,2]
[380618699,1755820328434,-924.98,0.00017534,2]
[380618700,1755820328445,-458.86,0.00017534,2]
[380618701,1755820328454,-746.66,0.00017534,2]
[380618702,1755820328464,-400.0,0.00017534,2]
[380618703,1755820328474,-747.87,0.00017534,2]
[380618704,1755820328484,-610.05,0.00017534,2]
[380618705,1755820328493,-1973.46,0.00017534,2]
[380618706,1755820328503,-825.71,0.00017534,2]
[380618707,1755820328514,-586.37,0.00017534,2]
[380618708,1755820328524,-229.0344473,0.00017534,2]
[380618709,1755820328533,-817.64,0.00017534,2]
[380618710,1755820328543,-400.0,0.00017534,2]
[380618711,1755820328553,-400.0,0.00017534,2]
[380618712,1755820328563,-1152.26,0.00017534,2]
[380618713,1755820328573,-512.77,0.00017534,2]
[380618714,1755820328582,-400.0,0.00017534,2]
[380618715,1755820328592,-400.0,0.00017534,2]
[380618716,1755820328601,-768.89,0.00017534,2]
[380618717,1755820328610,-1053.49,0.00017534,2]
[380618718,1755820328620,-615.14,0.00017534,2]
[380618719,1755820328630,-400.0,0.00017534,2]
[380618720,1755820328639,-400.0,0.00017534,2]
[380618721,1755820328649,-745.81,0.00017534,2]
[380618722,1755820328658,-400.0,0.00017534,2]
[380618723,1755820328667,-400.0,0.00017534,2]
[380618724,1755820328680,-1021.78,0.00017534,2]
[380618725,1755820328692,-566.18,0.00017534,2]
[380618726,1755820328704,-803.12,0.00017534,2]
[380618727,1755820328714,-417.99,0.00017534,2]
[380618728,1755820328726,-400.0,0.00017534,2]
[380618729,1755820328737,-400.0,0.00017534,2]
[380618730,1755820328747,-400.0,0.00017534,2]
[380618731,1755820328756,-400.0,0.00017534,2]
[380618732,1755820328766,-547.77,0.00017534,2]
[380618733,1755820328776,-524.34,0.00017534,2]
[380618734,1755820328785,-400.0,0.00017534,2]
[380618735,1755820328796,-489.15,0.00017534,2]
[380618736,1755820328806,-400.0,0.00017534,2]
[380618737,1755820328816,-439.09,0.00017534,2]
[380618738,1755820328826,-400.0,0.00017534,2]
[380618739,1755820328835,-400.0,0.00017534,2]
[380618740,1755820328846,-805.04,0.00017534,2]
[380618741,1755820328857,-938.89,0.00017534,2]
[380618742,1755820328868,-1152.54,0.00017534,2]
[380618743,1755820328879,-518.47,0.00017534,2]
[380618744,1755820328889,-957.79,0.00017534,2]
[380618745,1755820328899,-578.44,0.00017534,2]
[380618746,1755820328912,-400.0,0.00017534,2]
[380618747,1755820328923,-508.84,0.00017534,2]
[380618748,1755820328934,-1144.33,0.00017534,2]
[380618749,1755820328945,-400.0,0.00017534,2]
[380618750,1755820328954,-696.35,0.00017534,2]
[380618751,1755820328964,-445.45,0.00017534,2]
[380618752,1755820328973,-1110.21,0.00017534,2]
[380618753,1755820328983,-402.06,0.00017534,2]
[380618754,1755820328993,-1215.59,0.00017534,2]
[380618755,1755820329004,-1046.08,0.00017534,2]
[380618756,1755820329014,-453.00447067,0.00017534,2]
[380618757,1755820329024,-943.24,0.00017534,2]
[380618758,1755820329034,-957.84,0.00017534,2]
[380618759,1755820329044,-1381.91,0.00017534,2]
[380618760,1755820329054,-460.29,0.00017534,2]
[380618761,1755820329063,-400.0,0.00017534,2]
[380618762,1755820329074,-1285.71,0.00017534,2]
[380618763,1755820329086,-419.43,0.00017534,2]
[380618764,1755820329098,-784.56,0.00017534,2]
[380618765,1755820329109,-1398.33,0.00017534,2]
[380618766,1755820329121,-400.0,0.00017534,2]
[380618767,1755820329132,-400.0,0.00017534,2]
[380618768,1755820329142,-555.33,0.00017534,2]
[380618769,1755820329151,-604.49,0.00017534,2]
[380618770,1755820329161,-811.63,0.00017534,2]
[380618771,1755820329171,-749.0,0.00017534,2]
[380618772,1755820329180,-533.78,0.00017534,2]
[380618773,1755820329190,-653.07,0.00017534,2]
[380618774,1755820329199,-894.61,0.00017534,2]
[380618775,1755820329209,-794.48,0.00017534,2]
[380618776,1755820329218,-429.87482803,0.00017534,2]
[380618777,1755820329228,-446.6,0.00017534,2]
[380618778,1755820329238,-466.33,0.00017534,2]
[380618779,1755820329247,-733.97,0.00017534,2]
[380618780,1755820329257,-528.96,0.00017534,2]
[380618781,1755820329267,-537.39,0.00017534,2]
[380618782,1755820329277,-1162.29,0.00017534,2]
[380618783,1755820329287,-991.38,0.00017534,2]
[380618784,1755820329298,-710.06,0.00017534,2]
[380618785,1755820329308,-644.66,0.00017534,2]
[380618786,1755820329317,-1336.52,0.00017534,2]
[380618787,1755820329328,-690.98,0.00017534,2]
[380618788,1755820329338,-1268.53,0.00017534,2]
[380618789,1755820329348,-482.73,0.00017534,2]
[380618790,1755820329358,-400.0,0.00017534,2]
[380618791,1755820329368,-400.0,0.00017534,2]
[380618792,1755820329378,-578.73,0.00017534,2]
[380618793,1755820329388,-432.74,0.00017534,2]
[380618794,1755820329398,-400.0,0.00017534,2]
[380618795,1755820329408,-652.21,0.00017534,2]
[380618796,1755820329418,-400.0,0.00017534,2]
[380618797,1755820329428,-400.0,0.00017534,2]
[380618798,1755820329439,-829.75,0.00017534,2]
[380618799,1755820329449,-1098.89,0.00017534,2]
[380618800,1755820329459,-1369.69,0.00017534,2]
[380618801,1755820329469,-717.15,0.00017534,2]
[380618802,1755820329480,-400.0,0.00017534,2]
[380618803,1755820329490,-712.97,0.00017534,2]
[380618804,1755820329500,-1099.27,0.00017534,2]
[380618805,1755820329510,-400.0,0.00017534,2]
[380618806,1755820329521,-573.7,0.00017534,2]
[380618807,1755820329531,-647.6,0.00017534,2]
[380618808,1755820329540,-758.16,0.00017534,2]
[380618809,1755820329552,-950.33,0.00017534,2]
[380618810,1755820329562,-677.08,0.00017534,2]
[380618811,1755820329572,-400.0,0.00017534,2]
[380618812,1755820329581,-716.31,0.00017534,2]
[380618813,1755820329592,-400.0,0.00017534,2]
[380618814,1755820329603,-685.28,0.00017534,2]
[380618815,1755820329613,-400.0,0.00017534,2]
[380618816,1755820329623,-453.33,0.00017534,2]
[380618817,1755820329633,-641.55,0.00017534,2]
[380618818,1755820329643,-1148.39,0.00017534,2]
[380618819,1755820329652,-637.19,0.00017534,2]
[380618820,1755820329662,-400.0,0.00017534,2]
[380618821,1755820329675,-400.0,0.00017534,2]
[380618822,1755820329688,-739.06,0.00017534,2]
[380618823,1755820329699,-450.84,0.00017534,2]
[380618824,1755820329710,-512.8,0.00017534,2]
[380618825,1755820329725,-400.0,0.00017534,2]
[380618826,1755820329735,-857.51,0.00017534,2]
[380618827,1755820329744,-683.2,0.00017534,2]
[380618828,1755820329755,-710.81,0.00017534,2]
[380618829,1755820329765,-671.08,0.00017534,2]
[380618830,1755820329775,-400.0,0.00017534,2]
[380618831,1755820329784,-572.27,0.00017534,2]
[380618832,1755820329795,-400.0,0.00017534,2]
[380618833,1755820329805,-649.16,0.00017534,2]
[380618834,1755820329815,-400.0,0.00017534,2]
[380618835,1755820329825,-567.53,0.00017534,2]
[380618836,1755820329835,-400.0,0.00017534,2]
[380618837,1755820329845,-400.0,0.00017534,2]
[380618838,1755820329856,-1536.87,0.00017534,2]
[380618839,1755820329866,-400.0,0.00017534,2]
[380618840,1755820329875,-400.0,0.00017534,2]
[380618841,1755820329885,-1093.83,0.00017534,2]
[380618842,1755820329895,-400.0,0.00017534,2]
[380618843,1755820329904,-699.95,0.00017534,2]
[380618844,1755820329914,-641.32,0.00017534,2]
[380618845,1755820329924,-633.52,0.00017534,2]
[380618846,1755820329934,-948.55,0.00017534,2]
[380618847,1755820329944,-746.02441233,0.00017534,2]
[380618848,1755820331072,-142.35558767,0.00017534,2]
[380618849,1755820331083,-204.59382412,0.00017534,2]
[380618850,1755820331099,-941.68,0.00017534,2]
[380618851,1755820331110,-420.46617588,0.00017534,2]
[380618852,1755820331120,-1133.26,0.00017534,2]
[380618853,1755820331130,-496.27,0.00017534,2]
[380618854,1755820331139,-400.0,0.00017534,2]
[380618855,1755820331149,-777.7,0.00017534,2]
[380618856,1755820331158,-400.0,0.00017534,2]
[380618857,1755820331168,-573.7,0.00017534,2]
[380618858,1755820331183,-88.21410815,0.00017534,2]
[380618859,1755820331198,-438.40589185,0.00017534,2]
[380618860,1755820331209,-400.0,0.00017534,2]
[380618861,1755820331220,-393.78410815,0.00017534,2]
[380618862,1755820331234,-20.13589185,0.00017534,2]
[380618863,1755820331245,-748.93,0.00017534,2]
[380618864,1755820331256,-586.29,0.00017534,2]
[380618865,1755820331266,-1070.37,0.00017534,2]
[380618866,1755820331278,-514.78,0.00017534,2]
[380618867,1755820331290,-69.27477521,0.00017534,2]
[380618868,1755820333287,-678.803978,0.00016438,2]
[380618869,1755820333297,-400.0,0.00016438,2]
[380618870,1755820333306,-2360.73,0.00016438,2]
[380618871,1755820333315,-400.0,0.00016438,2]
[380618872,1755820333325,-678.803978,0.00016438,2]
[380618873,1755820333334,-475.218468,0.00016438,2]
[380618874,1755820333344,-205.31138385,0.00016438,2]
[380618875,1755820333353,-678.803978,0.00016537,2]
[380618876,1755820333362,-678.803978,0.00016537,2]
[380618877,1755820333371,-475.218468,0.00016537,2]
[380618878,1755820333381,-678.803978,0.00016712,2]
[380618879,1755820333390,-678.803978,0.00016712,2]
[380618880,1755820333399,-253.7,0.00016712,2]
[380618881,1755820333408,-2360.73,0.00016712,2]
[380618882,1755820333417,-400.0,0.00016712,2]
[380618883,1755820333426,-678.803978,0.00016712,2]
[380618884,1755820333435,-678.803978,0.00016712,2]
[380618885,1755820333445,-678.803978,0.000168,2]
[380618886,1755820333454,-678.803978,0.000168,2]
[380618887,1755820333464,-400.0,0.00016986,2]
[380618888,1755820333473,-2360.73,0.00016986,2]
[380618889,1755820333483,-400.0,0.00016986,2]
[380618890,1755820333492,-400.0,0.0001726,2]
[380618891,1755820333501,-2360.73,0.0001726,2]
[380618892,1755820333511,-400.0,0.0001726,2]
[380618893,1755820333521,-1090.80522479,0.00017534,2]
[380618894,1755820333531,-558.58,0.00017534,2]
[380618895,1755820333540,-439.89507536,0.00017534,2]
[380618896,1755820335501,-400.0,0.00016438,2]
[380618897,1755820335511,-926.48,0.00016438,2]
[380618898,1755820335520,-678.45566303,0.00016438,2]
[380618899,1755820335658,-0.34831497,0.00016438,2]
[380618900,1755820335667,-260.28168503,0.00016438,2]
[380618901,1755820335694,-214.93678297,0.00016438,2]
[380618902,1755820335703,-536.21,0.00016438,2]
[380618903,1755820335712,-678.803978,0.00016537,2]
[380618904,1755820335722,-475.218468,0.00016537,2]
[380618905,1755820335731,-475.218468,0.00016712,2]
[380618906,1755820335741,-475.218468,0.00016712,2]
[380618907,1755820335751,-926.48,0.00016712,2]
[380618908,1755820335760,-678.803978,0.00016712,2]
[380618909,1755820335769,-536.21,0.00016712,2]
[380618910,1755820335778,-678.803978,0.00016712,2]
[380618911,1755820335787,-475.218468,0.00016712,2]
[380618912,1755820335797,-475.218468,0.00016712,2]
[380618913,1755820335808,-678.803978,0.000168,2]
[380618914,1755820335817,-475.218468,0.000168,2]
[380618915,1755820335826,-678.803968,0.000168,2]
[380618916,1755820335836,-192.44584128,0.00016986,2]
[380618917,1755820335914,-734.03415872,0.00016986,2]
[380618918,1755820335924,-536.21,0.00016986,2]
[380618919,1755820335933,-926.48,0.0001726,2]
[380618920,1755820335942,-106.15895095,0.0001726,2]
[380618921,1755820335988,-475.218468,0.000168,2]
[380618922,1755820335999,-430.05104905,0.0001726,2]
[380618923,1755820336009,-476.65492464,0.00017534,2]
[380618924,1755820336018,-916.39,0.00017534,2]
[380618925,1755820336027,-545.23,0.00017534,2]
[380618926,1755820336036,-431.92,0.00017534,2]
[380618927,1755820336045,-444.04,0.00017534,2]
[380618928,1755820336055,-600.32,0.00017534,2]
[380618929,1755820336064,-400.0,0.00017534,2]
[380618930,1755820336075,-901.93,0.00017534,2]
[380618931,1755820336086,-720.59,0.00017534,2]
[380618932,1755820336096,-400.0,0.00017534,2]
[380618933,1755820336109,-413.59,0.00017534,2]
[380618934,1755820336121,-400.0,0.00017534,2]
[380618935,1755820336132,-980.09,0.00017534,2]
[380618936,1755820336141,-556.55,0.00017534,2]
[380618937,1755820336150,-614.99,0.00017534,2]
[380618938,1755820336159,-400.0,0.00017534,2]
[380618939,1755820336168,-562.58,0.00017534,2]
[380618940,1755820336177,-400.0,0.00017534,2]
[380618941,1755820336186,-835.07,0.00017534,2]
[380618942,1755820336196,-574.43,0.00017534,2]
[380618943,1755820336206,-559.25,0.00017534,2]
[380618944,1755820336215,-993.09,0.00017534,2]
[380618945,1755820336225,-400.0,0.00017534,2]
[380618946,1755820336236,-400.0,0.00017534,2]
[380618947,1755820336245,-400.0,0.00017534,2]
[380618948,1755820336254,-540.3,0.00017534,2]
[380618949,1755820336263,-1293.98,0.00017534,2]
[380618950,1755820336272,-400.0,0.00017534,2]
[380618951,1755820336281,-400.0,0.00017534,2]
[380618952,1755820336290,-628.9,0.00017534,2]
[380618953,1755820336301,-1638.31,0.00017534,2]
[380618954,1755820336311,-400.0,0.00017534,2]
[380618955,1755820336320,-1280.19,0.00017534,2]
[380618956,1755820336330,-575.09,0.00017534,2]
[380618957,1755820336340,-400.0,0.00017534,2]
[380618958,1755820336352,-400.0,0.00017534,2]
[380618959,1755820336361,-896.78,0.00017534,2]
[380618960,1755820336370,-1240.72,0.00017534,2]
[380618961,1755820336379,-502.59,0.00017534,2]
[380618962,1755820336390,-884.02,0.00017534,2]
[380618963,1755820336402,-582.17,0.00017534,2]
[380618964,1755820336416,-400.0,0.00017534,2]
[380618965,1755820336427,-400.0,0.00017534,2]
[380618966,1755820336439,-968.97,0.00017534,2]
[380618967,1755820336450,-400.0,0.00017534,2]
[380618968,1755820336460,-400.0,0.00017534,2]
[380618969,1755820336470,-400.0,0.00017534,2]
[380618970,1755820336479,-400.0,0.00017534,2]
[380618971,1755820336490,-838.85,0.00017534,2]
[380618972,1755820336501,-1000.0,0.00017534,2]
[380618973,1755820336511,-637.05,0.00017534,2]
[380618974,1755820336521,-401.25,0.00017534,2]
[380618975,1755820336531,-400.0,0.00017534,2]
[380618976,1755820336540,-589.56587031,0.00017534,2]
[380618977,1755820336554,-87.03412969,0.00017534,2]
[380618978,1755820336563,-436.95,0.00017534,2]
[380618979,1755820336573,-400.0,0.00017534,2]
[380618980,1755820336585,-211.39087531,0.00017534,2]
[380618981,1755820336597,-744.28031234,0.00017534,2]
[380618982,1755820336617,-2870.97047481,0.00016263,2]